fUSD/lending_fUSD_20240521
["ID","MTS","AMOUNT","RATE_DAILY","PERIOD"]
[327636070,1716263448533,-500.0,0.00038904,6]
[327636071,1716263448542,-1614.4,0.00038904,6]
[327636072,1716263448551,-527.9,0.00038904,6]
[327636073,1716263448560,-1216.39,0.00038904,6]
[327636074,1716263448570,-500.0,0.00038904,6]
[327636075,1716263448579,-500.0,0.00038904,6]
[327636076,1716263448589,-501.70595265,0.00038904,6]
[327636077,1716263448599,-4243.35,0.00038904,6]
[327636078,1716263448610,-2139.44,0.00038904,6]
[327636079,1716263448620,-1289.88,0.00038904,6]
[327636080,1716263448630,-2725.34,0.00038904,6]
[327636081,1716263448639,-500.0,0.00038904,6]
[327636082,1716263448648,-507.33385323,0.00038904,6]
[327636083,1716263448657,-500.0,0.00038904,6]
[327636084,1716263448667,-1033.99,0.00038904,6]
[327636085,1716263448678,-500.0,0.00038904,6]
[327636086,1716263448687,-1344.4,0.00038904,6]
[327636087,1716263448697,-337.16417585,0.00038904,6]
[327636088,1716263448706,-500.0,0.00038904,6]
[327636089,1716263448715,-1280.54,0.00038904,6]
[327636090,1716263448725,-500.0,0.00038904,6]
[327636091,1716263448734,-1242.63,0.00038904,6]
[327636092,1716263448744,-514.56139192,0.00038904,6]
[327636093,1716263448753,-1609.99,0.00038904,6]
[327636094,1716263448765,-603.32,0.00038904,6]
[327636095,1716263448777,-1607.48,0.00038904,6]
[327636096,1716263448786,-1480.23,0.00038904,6]
[327636097,1716263448796,-500.0,0.00038904,6]
[327636098,1716263448806,-713.43,0.00038904,6]
[327636099,1716263448816,-500.0,0.00038904,6]
[327636100,1716263448826,-500.0,0.00038904,6]
[327636101,1716263448836,-640.81,0.00038904,6]
[327636102,1716263448847,-27085.52,0.00038904,6]
[327636103,1716263448858,-151.0,0.00038904,14]
[327636104,1716263448869,-151.0,0.00038904,14]
[327636105,1716263448880,-521.11,0.00038904,6]
[327636106,1716263448889,-500.0,0.00038904,6]
[327636107,1716263448900,-500.0,0.00038904,6]
[327636108,1716263448910,-4717.14,0.00038904,6]
[327636109,1716263448919,-151.0,0.00038904,14]
[327636110,1716263448928,-2845.85,0.00038904,6]
[327636111,1716263448937,-160.243052,0.00038904,14]
[327636112,1716263448947,-504.64817295,0.00038904,6]
[327636113,1716263448958,-1656.1,0.00038904,6]
[327636114,1716263448968,-600.48,0.00038904,6]
[327636115,1716263448978,-151.0,0.00038904,14]
[327636116,1716263448987,-156.583032,0.00038904,14]
[327636117,1716263448997,-961.0,0.00038904,6]
[327636118,1716263449006,-2556.42,0.00038904,6]
[327636119,1716263449015,-2542.89,0.00038904,6]
[327636120,1716263449027,-1415.15,0.00038904,6]
[327636121,1716263449036,-500.0,0.00038904,6]
[327636122,1716263449046,-509.5373695,0.00038904,6]
[327636123,1716263449055,-154.919058,0.00038904,14]
[327636124,1716263449064,-500.0,0.00038904,6]
[327636125,1716263449073,-1196.1,0.00038904,6]
[327636126,1716263449083,-609.39,0.00038904,6]
[327636127,1716263449092,-1551.81,0.00038904,6]
[327636128,1716263449102,-552.97,0.00038904,6]
[327636129,1716263449112,-500.0,0.00038904,6]
[327636130,1716263449121,-1324.01,0.00038904,6]
[327636131,1716263449131,-500.0,0.00038904,6]
[327636132,1716263449142,-2682.4,0.00038904,6]
[327636133,1716263449152,-538.47,0.00038904,6]
[327636134,1716263449173,-507.75076995,0.00038904,6]
[327636135,1716263449182,-500.0,0.00038904,6]
[327636136,1716263449192,-850.71,0.00038904,6]
[327636137,1716263449201,-1803.57,0.00038904,6]
[327636138,1716263449211,-1119.17,0.00038904,6]
[327636139,1716263449220,-1304.87,0.00038904,6]
[327636140,1716263449230,-500.0,0.00038904,6]
[327636141,1716263449239,-6376.41,0.00038904,6]
[327636142,1716263449249,-507.40611648,0.00038904,6]
[327636143,1716263449259,-5031.77,0.00038904,6]
[327636144,1716263449269,-1462.43,0.00038904,6]
[327636145,1716263449279,-810.07,0.00038904,6]
[327636146,1716263449289,-12217.73,0.00038904,6]
[327636147,1716263449299,-549.04,0.00038904,6]
[327636148,1716263449309,-2152.99665309,0.00038904,6]
[327636149,1716263449808,-150.0,0.00037695,2]
[327636150,1716263449819,-739.85334691,0.00038904,6]
[327636151,1716263449831,-3974.22,0.00038904,6]
[327636152,1716263449841,-711.54,0.00038904,6]
[327636153,1716263449851,-503.50334013,0.00038904,6]
[327636154,1716263449868,-883.99,0.00038904,6]
[327636155,1716263449876,-1279.93,0.00038904,6]
[327636156,1716263449887,-1238.58,0.00038904,6]
[327636157,1716263449896,-1794.98,0.00038904,6]
[327636158,1716263449907,-7654.13,0.00038904,6]
[327636159,1716263449918,-517.93122096,0.00038904,6]
[327636160,1716263449927,-2857.48,0.00038904,6]
[327636161,1716263449936,-2014.66,0.00038904,6]
[327636162,1716263449948,-2138.86,0.00038904,6]
[327636163,1716263449957,-600.12,0.00038904,6]
[327636164,1716263449967,-921.28,0.00038904,6]
[327636165,1716263449976,-506.96494641,0.00038904,6]
[327636166,1716263449985,-500.0,0.00038904,6]
[327636167,1716263449995,-500.0,0.00038904,6]
[327636168,1716263450004,-1229.44,0.00038904,6]
[327636169,1716263450014,-13541.62,0.00038904,6]
[327636170,1716263450023,-507.48520094,0.00038904,6]
[327636171,1716263450032,-9286.69,0.00038904,6]
[327636172,1716263450041,-500.0,0.00038904,6]
[327636173,1716263450051,-1594.2,0.00038904,6]
[327636174,1716263450060,-500.0,0.00038904,6]
[327636175,1716263450069,-500.0,0.00038904,6]
[327636176,1716263450078,-1044.44,0.00038904,6]
[327636177,1716263450087,-240.18251121,0.00038904,6]
[327636178,1716263450096,-3115.73,0.00038904,6]
[327636179,1716263450105,-500.0,0.00038904,6]
[327636180,1716263450115,-1667.77,0.00038904,6]
[327636181,1716263450123,-3400.61,0.00038904,6]
[327636182,1716263450132,-500.0,0.00038904,6]
[327636183,1716263450142,-6143.78,0.00038904,6]
[327636184,1716263450151,-500.0,0.00038904,6]
[327636185,1716263450161,-151.0,0.00038904,14]
[327636186,1716263450170,-1977.24,0.00038904,6]
[327636187,1716263450179,-500.0,0.00038904,6]
[327636188,1716263450188,-1467.86,0.00038904,6]
[327636189,1716263450197,-1911.94,0.00038904,6]
[327636190,1716263450206,-1830.94,0.00038904,6]
[327636191,1716263450216,-1065.92,0.00038904,6]
[327636192,1716263450225,-2007.33,0.00038904,6]
[327636193,1716263450235,-151.0,0.00038904,14]
[327636194,1716263450244,-1950.28,0.00038904,6]
[327636195,1716263450254,-151.0,0.00038904,14]
[327636196,1716263450263,-500.0,0.00038904,6]
[327636197,1716263450272,-2287.42,0.00038904,6]
[327636198,1716263450281,-500.0,0.00038904,6]
[327636199,1716263450290,-518.20863205,0.00038904,6]
[327636200,1716263450301,-500.0,0.00038904,6]
[327636201,1716263450310,-1178.63,0.00038904,6]
[327636202,1716263450320,-500.0,0.00038904,6]
[327636203,1716263450328,-545.36,0.00038904,6]
[327636204,1716263450337,-802.85,0.00038904,6]
[327636205,1716263450346,-33932.24,0.00038904,6]
[327636206,1716263450354,-2976.83,0.00038904,6]
[327636207,1716263450367,-3342.6,0.00038904,6]
[327636208,1716263450377,-1901.04,0.00038904,6]
[327636209,1716263450386,-13840.19,0.00038904,6]
[327636210,1716263450395,-500.0,0.00038904,6]
[327636211,1716263450404,-1924.15,0.00038904,6]
[327636212,1716263450413,-1876.54,0.00038904,6]
[327636213,1716263450422,-500.0,0.00038904,6]
[327636214,1716263450431,-510.59183713,0.00038904,6]
[327636215,1716263450440,-2362.47,0.00038904,6]
[327636216,1716263450449,-500.0,0.00038904,6]
[327636217,1716263450459,-500.0,0.00038904,6]
[327636218,1716263450469,-1606.68,0.00038904,6]
[327636219,1716263450481,-1718.03,0.00038904,6]
[327636220,1716263450490,-403.85983424,0.00038904,6]
[327636221,1716263450499,-2789.9,0.00038904,6]
[327636222,1716263450508,-653.79,0.00038904,6]
[327636223,1716263450517,-500.0,0.00038904,6]
[327636224,1716263450527,-2374.98,0.00038904,6]
[327636225,1716263450535,-2000.0,0.00038904,6]
[327636226,1716263450546,-500.0,0.00038904,6]
[327636227,1716263450555,-1464.72,0.00038904,6]
[327636228,1716263450564,-500.0,0.00038904,6]
[327636229,1716263450574,-500.0,0.00038904,6]
[327636230,1716263450585,-16497.84,0.00038904,6]
[327636231,1716263450594,-1008.55,0.00038904,6]
[327636232,1716263450604,-500.0,0.00038904,6]
[327636233,1716263450614,-719.07,0.00038904,6]
[327636234,1716263450623,-151.0,0.00038904,14]
[327636235,1716263450631,-151.0,0.00038904,14]
[327636236,1716263450640,-500.0,0.00038904,6]
[327636237,1716263450650,-538.26627909,0.00038904,6]
[327636238,1716263450660,-9249.79,0.00038904,6]
[327636239,1716263450670,-1940.6,0.00038904,6]
[327636240,1716263450681,-1801.79,0.00038904,6]
[327636241,1716263450692,-500.0,0.00038904,6]
[327636242,1716263450703,-1020.66,0.00038904,6]
[327636243,1716263450713,-3181.09,0.00038904,6]
[327636244,1716263450722,-5004.86,0.00038904,6]
[327636245,1716263450732,-3016.23,0.00038904,6]
[327636246,1716263450740,-415.12348145,0.00038904,6]
[327636247,1716263450749,-2679.83,0.00038904,6]
[327636248,1716263450759,-500.0,0.00038904,6]
[327636249,1716263450768,-623.97,0.00038904,6]
[327636250,1716263450777,-1487.6,0.00038904,6]
[327636251,1716263450786,-500.0,0.00038904,6]
[327636252,1716263450795,-1849.47,0.00038904,6]
[327636253,1716263450804,-151.0,0.00038904,14]
[327636254,1716263450813,-1000.4,0.00038904,6]
[327636255,1716263450822,-151.0,0.00038904,14]
[327636256,1716263450832,-2064.23,0.00038904,6]
[327636257,1716263450842,-1057.15,0.00038904,6]
[327636258,1716263450852,-2787.81,0.00038904,6]
[327636259,1716263450864,-970.71,0.00038904,6]
[327636260,1716263450876,-1648.86,0.00038904,6]
[327636261,1716263450885,-614.48,0.00038904,6]
[327636262,1716263450895,-1078.45,0.00038904,6]
[327636263,1716263450905,-500.0,0.00038904,6]
[327636264,1716263450915,-151.0,0.00038904,14]
[327636265,1716263450924,-162.199155,0.00038904,14]
[327636266,1716263450934,-1606.43,0.00038904,6]
[327636267,1716263450943,-992.31,0.00038904,6]
[327636268,1716263450956,-500.0,0.00038904,6]
[327636269,1716263450966,-2904.19,0.00038904,6]
[327636270,1716263450975,-3255.15,0.00038904,6]
[327636271,1716263450985,-500.0,0.00038904,6]
[327636272,1716263450994,-658.65,0.00038904,6]
[327636273,1716263451004,-4710.19,0.00038904,6]
[327636274,1716263451013,-508.49669724,0.00038904,6]
[327636275,1716263451023,-500.0,0.00038904,6]
[327636276,1716263451032,-500.0,0.00038904,6]
[327636277,1716263451042,-4356.6165584,0.00038904,6]
[327636278,1716263451061,-2814.3634416,0.00038904,6]
[327636279,1716263451071,-1476.8,0.00038904,6]
[327636280,1716263451080,-941.71,0.00038904,6]
[327636281,1716263451089,-159.3008,0.00038904,14]
[327636282,1716263451099,-3040.23,0.00038904,6]
[327636283,1716263451108,-500.0,0.00038904,6]
[327636284,1716263451117,-2220.18,0.00038904,6]
[327636285,1716263451126,-1421.06,0.00038904,6]
[327636286,1716263451134,-617.18,0.00038904,6]
[327636287,1716263451143,-300.0,0.00038904,6]
[327636288,1716263451152,-1542.2,0.00038904,6]
[327636289,1716263451161,-500.0,0.00038904,6]
[327636290,1716263451171,-500.0,0.00038904,6]
[327636291,1716263451179,-582.94,0.00038904,6]
[327636292,1716263451188,-151.0,0.00038904,14]
[327636293,1716263451197,-151.0,0.00038904,14]
[327636294,1716263451207,-1727.71,0.00038904,6]
[327636295,1716263451216,-881.63121151,0.00038904,6]
[327636296,1716263451228,-6128.80878849,0.00038904,6]
[327636297,1716263451237,-2080.18,0.00038904,6]
[327636298,1716263451246,-903.91,0.00038904,6]
[327636299,1716263451256,-500.0,0.00038904,6]
[327636300,1716263451265,-500.0,0.00038904,6]
[327636301,1716263451275,-10469.69,0.00038904,6]
[327636302,1716263451284,-500.0,0.00038904,6]
[327636303,1716263451293,-2803.2,0.00038904,6]
[327636304,1716263451302,-6848.62,0.00038904,6]
[327636305,1716263451312,-552.05,0.00038904,6]
[327636306,1716263451322,-534.42525869,0.00038904,6]
[327636307,1716263451331,-500.0,0.00038904,6]
[327636308,1716263451340,-868.38,0.00038904,6]
[327636309,1716263451349,-995.81,0.00038904,6]
[327636310,1716263451361,-16489.44,0.00038904,6]
[327636311,1716263451371,-500.0,0.00038904,6]
[327636312,1716263451380,-6434.87,0.00038904,6]
[327636313,1716263451390,-972.22,0.00038904,6]
[327636314,1716263451399,-17619.42,0.00038904,6]
[327636315,1716263451409,-151.0,0.00038904,14]
[327636316,1716263451418,-3786.21,0.00038904,6]
[327636317,1716263451427,-500.0,0.00038904,6]
[327636318,1716263451437,-500.0,0.00038904,6]
[327636319,1716263451446,-488.852766,0.00038904,6]
[327636320,1716263451455,-500.0,0.00038904,6]
[327636321,1716263451464,-4605.44,0.00038904,6]
[327636322,1716263451474,-500.0,0.00038904,6]
[327636323,1716263451483,-654.59,0.00038904,6]
[327636324,1716263451493,-500.0,0.00038904,6]
[327636325,1716263451502,-500.0,0.00038904,6]
[327636326,1716263451511,-4460.49,0.00038904,6]
[327636327,1716263451520,-1225.72,0.00038904,6]
[327636328,1716263451528,-500.0,0.00038904,6]
[327636329,1716263451538,-500.0,0.00038904,6]
[327636330,1716263451547,-507.87,0.00038904,6]
[327636331,1716263451556,-1307.45,0.00038904,6]
[327636332,1716263451565,-1393.77,0.00038904,6]
[327636333,1716263451574,-500.0,0.00038904,6]
[327636334,1716263451583,-652.63,0.00038904,6]
[327636335,1716263451592,-5121.16,0.00038904,6]
[327636336,1716263451601,-2532.39,0.00038904,6]
[327636337,1716263451611,-500.0,0.00038904,6]
[327636338,1716263451621,-2934.38,0.00038904,6]
[327636339,1716263451629,-151.0,0.00038904,14]
[327636340,1716263451638,-151.0,0.00038904,14]
[327636341,1716263451647,-500.0,0.00038904,6]
[327636342,1716263451656,-2906.04,0.00038904,6]
[327636343,1716263451666,-1621.41,0.00038904,6]
[327636344,1716263451676,-1968.29,0.00038904,6]
[327636345,1716263451685,-500.0,0.00038904,6]
[327636346,1716263451694,-3333.86,0.00038904,6]
[327636347,1716263451703,-264.505682,0.00038904,14]
[327636348,1716263451712,-264.505682,0.00038904,14]
[327636349,1716263451722,-5629.11,0.00038904,6]
[327636350,1716263451731,-848.1,0.00038904,6]
[327636351,1716263451740,-500.0,0.00038904,6]
[327636352,1716263451749,-3713.57,0.00038904,6]
[327636353,1716263451758,-500.0,0.00038904,6]
[327636354,1716263451767,-264.505682,0.00038904,14]
[327636355,1716263451896,-264.505682,0.00038904,14]
[327636356,1716263451907,-500.0,0.00038904,6]
[327636357,1716263451916,-829.89,0.00038904,6]
[327636358,1716263451926,-500.0,0.00038904,6]
[327636359,1716263451935,-3205.25,0.00038904,6]
[327636360,1716263451946,-500.0,0.00038904,6]
[327636361,1716263451956,-2796.02,0.00038904,6]
[327636362,1716263451966,-500.0,0.00038904,6]
[327636363,1716263451974,-648.97,0.00038904,6]
[327636364,1716263451984,-857.99,0.00038904,6]
[327636365,1716263451993,-1638.23,0.00038904,6]
[327636366,1716263452001,-3816.26,0.00038904,6]
[327636367,1716263452011,-2092.25,0.00038904,6]
[327636368,1716263452020,-500.0,0.00038904,6]
[327636369,1716263452029,-2143.65,0.00038904,6]
[327636370,1716263452038,-506.78784817,0.00038904,6]
[327636371,1716263452047,-6974.84,0.00038904,6]
[327636372,1716263452056,-1375.55,0.00038904,6]
[327636373,1716263452065,-978.74,0.00038904,6]
[327636374,1716263452074,-500.0,0.00038904,6]
[327636375,1716263452083,-3884.69,0.00038904,6]
[327636376,1716263452092,-695.94,0.00038904,6]
[327636377,1716263452101,-1345.49,0.00038904,6]
[327636378,1716263452111,-4195.68,0.00038904,6]
[327636379,1716263452120,-1136.26,0.00038904,6]
[327636380,1716263452130,-500.0,0.00038904,6]
[327636381,1716263452140,-1972.79,0.00038904,6]
[327636382,1716263452149,-3671.5,0.00038904,6]
[327636383,1716263452159,-500.0,0.00038904,6]
[327636384,1716263452168,-189.25657536,0.00038904,6]
[327636385,1716263452177,-151.0,0.00038904,14]
[327636386,1716263452187,-1939.13,0.00038904,6]
[327636387,1716263452197,-151.0,0.00038904,14]
[327636388,1716263452206,-2441.94,0.00038904,6]
[327636389,1716263452216,-500.0,0.00038904,6]
[327636390,1716263452225,-500.0,0.00038904,6]
[327636391,1716263452234,-1308.43,0.00038904,6]
[327636392,1716263452244,-3980.56,0.00038904,6]
[327636393,1716263452253,-374.46137945,0.00038904,6]
[327636394,1716263452263,-500.0,0.00038904,6]
[327636395,1716263452272,-500.0,0.00038904,6]
[327636396,1716263452282,-500.0,0.00038904,6]
[327636397,1716263452291,-500.0,0.00038904,6]
[327636398,1716263452300,-1260.87,0.00038904,6]
[327636399,1716263452310,-500.0,0.00038904,6]
[327636400,1716263452319,-1368.99,0.00038904,6]
[327636401,1716263452328,-19730.83,0.00038904,6]
[327636402,1716263452337,-500.0,0.00038904,6]
[327636403,1716263452346,-1072.75,0.00038904,6]
[327636404,1716263452355,-2021.25,0.00038904,6]
[327636405,1716263452366,-151.0,0.00038904,14]
[327636406,1716263452375,-151.0,0.00038904,14]
[327636407,1716263452384,-500.0,0.00038904,6]
[327636408,1716263452393,-3267.75,0.00038904,6]
[327636409,1716263452402,-500.0,0.00038904,6]
[327636410,1716263452411,-500.0,0.00038904,6]
[327636411,1716263452421,-1446.35,0.00038904,6]
[327636412,1716263452430,-151.0,0.00038904,14]
[327636413,1716263452440,-151.0,0.00038904,14]
[327636414,1716263452448,-532.62,0.00038904,6]
[327636415,1716263452458,-1012.51,0.00038904,6]
[327636416,1716263452467,-1906.21,0.00038904,6]
[327636417,1716263452476,-1260.84,0.00038904,6]
[327636418,1716263452485,-2385.05,0.00038904,6]
[327636419,1716263452495,-1028.14,0.00038904,6]
[327636420,1716263452504,-176.51970088,0.00038904,6]
[327636421,1716263452513,-2578.26,0.00038904,6]
[327636422,1716263452522,-1686.94,0.00038904,6]
[327636423,1716263452531,-500.0,0.00038904,6]
[327636424,1716263452540,-587.959271,0.00038904,14]
[327636425,1716263452549,-587.959271,0.00038904,14]
[327636426,1716263452559,-1087.58,0.00038904,6]
[327636427,1716263452568,-2786.04,0.00038904,6]
[327636428,1716263452578,-500.0,0.00038904,6]
[327636429,1716263452587,-166.90315672,0.00038913,2]
[327636430,1716263452596,-192.54127769,0.00038913,2]
[327636431,1716263452605,-353.73923106,0.00038913,2]
[327636432,1716263452616,-164.81712405,0.00038913,2]
[327636433,1716263452625,-417.02059378,0.00038913,2]
[327636434,1716263452636,-7728.11664803,0.00038913,2]
[327636435,1716263452647,-1849.62696504,0.00038913,2]
[327636436,1716263452657,-1825.8970357,0.00038956,2]
[327636437,1716263452667,-16894.8569086,0.00038956,2]
[327636438,1716263452677,-4252.88823,0.00038956,2]
[327636439,1716263452689,-150.68,0.00038983,15]
[327636440,1716263452699,-150.5,0.00038993,15]
[327636441,1716263452708,-262.61198665,0.00039,14]
[327636442,1716263452719,-478.4549642,0.00039,40]
[327636443,1716263452729,-153.44597196,0.00039,30]
[327636444,1716263452738,-190.30858276,0.00039,2]
[327636445,1716263452748,-150.0,0.00039,10]
[327636446,1716263452758,-1904.3934661,0.00039002,12]
[327636447,1716263452767,-393.97876918,0.00039003,2]
[327636448,1716263452777,-285.0,0.00039003,15]
[327636449,1716263452786,-150.5,0.00039003,15]
[327636450,1716263452796,-10732.32,0.00039012,6]
[327636451,1716263452805,-10732.32,0.00039012,6]
[327636452,1716263452815,-10732.32,0.00039012,6]
[327636453,1716263452824,-10732.32,0.00039012,6]
[327636454,1716263452833,-10732.32,0.00039012,6]
[327636455,1716263452843,-10732.32,0.00039012,6]
[327636456,1716263452853,-342121.46451834,0.00039013,15]
[327636457,1716263452865,-500.0,0.00039013,6]
[327636458,1716263452876,-1175.99,0.00039013,6]
[327636459,1716263452886,-500.0,0.00039013,6]
[327636460,1716263452895,-500.0,0.00039013,6]
[327636461,1716263452905,-508.98304083,0.00039013,6]
[327636462,1716263452914,-876.51,0.00039013,6]
[327636463,1716263452923,-500.0,0.00039013,6]
[327636464,1716263452933,-525.17,0.00039013,6]
[327636465,1716263452942,-500.0,0.00039013,6]
[327636466,1716263452954,-645.0508049,0.00039013,6]
[327636467,1716263452964,-500.0,0.00039013,6]
[327636468,1716263452973,-500.0,0.00039013,6]
[327636469,1716263452982,-288.66614456,0.00039013,6]
[327636470,1716263452992,-500.0,0.00039013,6]
[327636471,1716263453003,-506.16721346,0.00039013,6]
[327636472,1716263453014,-842.08,0.00039013,6]
[327636473,1716263453025,-500.0,0.00039013,6]
[327636474,1716263453036,-500.0,0.00039013,6]
[327636475,1716263453046,-555.38,0.00039013,6]
[327636476,1716263453057,-500.0,0.00039013,6]
[327636477,1716263453066,-1144.63,0.00039013,6]
[327636478,1716263453075,-500.0,0.00039013,6]
[327636479,1716263453085,-539.24350094,0.00039013,6]
[327636480,1716263453095,-688.66,0.00039013,6]
[327636481,1716263453104,-500.0,0.00039013,6]
[327636482,1716263453115,-1081.83,0.00039013,6]
[327636483,1716263453124,-1015.81,0.00039013,6]
[327636484,1716263453134,-500.0,0.00039013,6]
[327636485,1716263453144,-508.35910216,0.00039013,6]
[327636486,1716263453153,-316.30875153,0.00039013,6]
[327636487,1716263453164,-500.0,0.00039013,6]
[327636488,1716263453173,-500.0,0.00039013,6]
[327636489,1716263453182,-500.0,0.00039013,6]
[327636490,1716263453191,-699.51,0.00039013,6]
[327636491,1716263453201,-500.0,0.00039013,6]
[327636492,1716263453210,-685.98,0.00039013,6]
[327636493,1716263453220,-879.71,0.00039013,6]
[327636494,1716263453230,-500.0,0.00039013,6]
[327636495,1716263453240,-580.89,0.00039013,6]
[327636496,1716263453249,-500.0,0.00039013,6]
[327636497,1716263453258,-510.06665504,0.00039013,6]
[327636498,1716263453267,-768.23,0.00039013,6]
[327636499,1716263453277,-500.0,0.00039013,6]
[327636500,1716263453287,-508.13627697,0.00039013,6]
[327636501,1716263453296,-500.0,0.00039013,6]
[327636502,1716263453306,-500.0,0.00039013,6]
[327636503,1716263453315,-1048.81,0.00039013,6]
[327636504,1716263453324,-500.0,0.00039013,6]
[327636505,1716263453334,-500.0,0.00039013,6]
[327636506,1716263453343,-648.64,0.00039013,6]
[327636507,1716263453353,-500.0,0.00039013,6]
[327636508,1716263453363,-1083.25,0.00039013,6]
[327636509,1716263453372,-1083.96,0.00039013,6]
[327636510,1716263453382,-500.0,0.00039013,6]
[327636511,1716263453392,-926.13,0.00039013,6]
[327636512,1716263453401,-500.0,0.00039013,6]
[327636513,1716263453410,-500.0,0.00039013,6]
[327636514,1716263453419,-500.0,0.00039013,6]
[327636515,1716263453428,-500.0,0.00039013,6]
[327636516,1716263453438,-651.6,0.00039013,6]
[327636517,1716263453447,-500.0,0.00039013,6]
[327636518,1716263453456,-500.0,0.00039013,6]
[327636519,1716263453466,-875.64,0.00039013,6]
[327636520,1716263453475,-500.0,0.00039013,6]
[327636521,1716263453485,-500.0,0.00039013,6]
[327636522,1716263453495,-500.0,0.00039013,6]
[327636523,1716263453504,-500.0,0.00039013,6]
[327636524,1716263453514,-500.0,0.00039013,6]
[327636525,1716263453523,-938.94,0.00039013,6]
[327636526,1716263453532,-603.49,0.00039013,6]
[327636527,1716263453542,-1450.63,0.00039013,6]
[327636528,1716263453552,-318.31759385,0.00039013,6]
[327636529,1716263453561,-500.0,0.00039013,6]
[327636530,1716263453570,-802.74,0.00039013,6]
[327636531,1716263453579,-500.0,0.00039013,6]
[327636532,1716263453588,-1371.65,0.00039013,6]
[327636533,1716263453598,-507.82285487,0.00039013,6]
[327636534,1716263453607,-856.78,0.00039013,6]
[327636535,1716263453617,-933.96,0.00039013,6]
[327636536,1716263453626,-895.94,0.00039013,6]
[327636537,1716263453635,-895.12,0.00039013,6]
[327636538,1716263453645,-493.62702902,0.00039013,6]
[327636539,1716263453654,-575.67,0.00039013,6]
[327636540,1716263453663,-508.23943574,0.00039013,6]
[327636541,1716263453673,-712.56,0.00039013,6]
[327636542,1716263453682,-1023.58,0.00039013,6]
[327636543,1716263453691,-509.31465574,0.00039013,6]
[327636544,1716263453700,-500.0,0.00039013,6]
[327636545,1716263453709,-625.53,0.00039013,6]
[327636546,1716263453718,-500.0,0.00039013,6]
[327636547,1716263453727,-500.0,0.00039013,6]
[327636548,1716263453736,-500.0,0.00039013,6]
[327636549,1716263453745,-500.0,0.00039013,6]
[327636550,1716263453754,-919.32,0.00039013,6]
[327636551,1716263453763,-1089.47,0.00039013,6]
[327636552,1716263453773,-525.01,0.00039013,6]
[327636553,1716263453782,-500.0,0.00039013,6]
[327636554,1716263453791,-500.0,0.00039013,6]
[327636555,1716263453801,-302.26652086,0.00039013,6]
[327636556,1716263453812,-516.91,0.00039013,6]
[327636557,1716263453822,-500.0,0.00039013,6]
[327636558,1716263453832,-566.45,0.00039013,6]
[327636559,1716263453843,-500.0,0.00039013,6]
[327636560,1716263453852,-593.09,0.00039013,6]
[327636561,1716263453865,-764.18,0.00039013,6]
[327636562,1716263453878,-614.92,0.00039013,6]
[327636563,1716263453887,-500.0,0.00039013,6]
[327636564,1716263453897,-500.0,0.00039013,6]
[327636565,1716263453908,-960.03,0.00039013,6]
[327636566,1716263453919,-500.0,0.00039013,2]
[327636567,1716263453930,-507.45806573,0.00039013,6]
[327636568,1716263453941,-557.26,0.00039013,6]
[327636569,1716263453950,-500.0,0.00039013,6]